Cogmind - Beta 13 @@@ ROGUE MODE // 2024.07.27 @ 11:53:14 Player: Sgt. SmokeWeed Result: Destroyed by S-27 Virus with Autogun Performance ------------- Evolutions (4) 2000 Regions Visited (10) 2000 Robots Destroyed (95) 475 Value Destroyed (3076) 3076 Prototype IDs (26) 520 Alien Tech Used (0) 0 Bonus (1089) 1089 TOTAL SCORE: 9160 Bonus ------- High Alert Combat Kills 232 Follower Combat Kills 112 Entered DSFs 500 Aligned with FarCom 300 Friendly Fire -55 Cogmind --------- Core Integrity 0/850 Matter 150/300 Energy 99/100 System Corruption 3% Temperature Cool (0) Movement Core (50) Location -6/Factory Parts ------- > --- POWER (1) -------- (None) > --- PROPULSION (2) --- (None) > --- UTILITY (5) ------ Improved Targeting Computer > --- WEAPON (7) ------- (None) > --- INVENTORY (5) ---- Authchip [Weapon] Peak State ------------ > --- POWER ------------ Light Angular Momentum Engine > --- PROPULSION ------- Light Treads Advanced Treads > --- UTILITY ---------- Heavy Armor Plating Hacking Suite > --- WEAPON ----------- XL Autogun Array Advanced EMP Blaster > --- INVENTORY -------- Light Treads Light Treads Advanced Assault Cannon Advanced Assault Cannon Katana [Rating: 59] Favorites ----------- Power Light Angular Momentum Engine Engine Light Angular Momentum Engine Power Core Light Nuclear Core Propulsion Light Treads Treads Light Treads Utility Hacking Suite Device Improved Heat Sink Storage Medium Storage Unit Processor Improved Targeting Computer Hackware Hacking Suite Protection Backup Plating III Weapon Ion Cannon Energy Gun Particle Gun Energy Cannon Ion Cannon Ballistic Gun XL Autogun Array Ballistic Cannon Advanced Assault Cannon Launcher Rocket Launcher Slashing Weapon Katana Build | -11 -10 -10 -9 -9 -9 -8 -8 -7 -7 -6 ------- Run | Yrd Mat Min Mat Min Exi Min Mat Fac DSF Fac Slots Evolved 8 | . . . 2 . . . 2 2 . 2 Power . | . . . . . . . . . . . Propulsion . | . . . . . . . . . . . Utility 3 | . . . . . . . 1 2 . . Weapon 5 | . . . 2 . . . 1 . . 2 Parts Attached 49 | 5 5 1 10 . 1 4 13 . . 10 Power 8 | 1 1 1 . . . 1 2 . . 2 Engine 6 | 1 . 1 . . . 1 2 . . 1 Core 2 | . 1 . . . . . . . . 1 Reactor . | . . . . . . . . . . . Propulsion 15 | 2 2 . 2 . . 2 5 . . 2 Treads 15 | 2 2 . 2 . . 2 5 . . 2 Leg . | . . . . . . . . . . . Wheel . | . . . . . . . . . . . Hover . | . . . . . . . . . . . Flight . | . . . . . . . . . . . Utility 8 | . 1 . 2 . . 1 3 . . 1 Device 3 | . 1 . . . . . 2 . . . Storage 1 | . . . . . . 1 . . . . Processor 1 | . . . . . . . . . . 1 Hackware 1 | . . . 1 . . . . . . . Protection 2 | . . . 1 . . . 1 . . . Artifact . | . . . . . . . . . . . Weapon 18 | 2 1 . 6 . 1 . 3 . . 5 Energy Gun 1 | . 1 . . . . . . . . . Energy Cannon 4 | . . . 4 . . . . . . . Ballistic Gun 3 | 2 . . . . 1 . . . . . Ballistic Cannon 2 | . . . . . . . . . . 2 Launcher 7 | . . . 2 . . . 3 . . 2 Special Weapon . | . . . . . . . . . . . Impact Weapon . | . . . . . . . . . . . Slashing Weapon 1 | . . . . . . . . . . 1 Piercing Weapon . | . . . . . . . . . . . Special Melee Weapon . | . . . . . . . . . . . Unidentified Prototypes 3 | . . . . . . . 2 . . 1 Parts Lost 19 | . 3 . . . . . 1 . 6 9 Power 2 | . . . . . . . . . 1 1 Propulsion 6 | . 2 . . . . . . . 2 2 Utility 5 | . . . . . . . 1 . 2 2 Weapon 6 | . 1 . . . . . . . 1 4 Highest Loss Streak 9 | . 2 . . . . . 1 . 6 9 To Critical Strikes . | . . . . . . . . . . . Average Slot Usage (%) 69 | . 70 85 95 100 83 66 64 53 46 49 Engine 7 | . 5 . 11 11 11 11 9 7 6 2 Core 1 | . 8 13 . . . . . . . 1 Treads 18 | . 21 28 22 22 22 22 18 15 13 8 Device 5 | . 6 14 11 11 11 3 3 . . . Hackware 5 | . . . 2 11 11 11 9 7 6 . Protection 4 | . . . 5 . . . 6 7 6 9 Energy Gun 1 | . 6 14 . . . . . . . . Energy Cannon 7 | . . . 33 33 17 . . . . . Ballistic Gun 6 | . 21 14 . . 5 11 9 7 4 . Ballistic Cannon 2 | . . . . . . . . . . 12 Launcher 5 | . . . 8 11 5 . 9 7 6 4 Slashing Weapon 1 | . . . . . . . . . . 5 Naked Turns 12 | . . . . . . . . . 12 . Heaviest Build 45 | 7 11 11 36 27 27 34 45 45 45 34 Greatest Support 50 | 40 40 40 40 40 40 40 42 42 42 50 Greatest Overweight (x) 2 | 2 . . . . . . 1 1 1 2 Average Overweight (x) . | . . . . . . . . 1 . . Largest Inventory Capacity 10 | 5 5 5 5 5 5 10 10 5 5 5 Average Capacity 5 | 5 5 5 5 5 5 8 5 5 5 5 Most Carried 10 | . 2 3 5 5 5 10 8 5 5 4 Average Carried 3 | . . 2 4 5 5 7 5 5 5 1 Final Capacity 10 | 5 5 5 5 5 5 10 5 5 5 5 Final Carried 9 | . 2 3 5 5 5 9 5 5 5 1 Class Distribution -------------------- 30% | Scavenger-Skirmisher 19% | Scavenger-Gunner 16% | Mutant 15% | Tank 7% | Scavenger-Mutant 6% | Skirmisher Dominant Class ---------------- Mutant | -10/Materials Scavenger-Mutant | -10/Mines Scavenger-Tank | -9/Materials Scavenger-Gunner | -9/Mines Scavenger-Gunner | -9/Exiles Scavenger-Skirmisher | -8/Mines Scavenger-Skirmisher | -8/Materials Skirmisher | -7/Factory Skirmisher | -7/DSF Tank | -6/Factory Resources | -11 -10 -10 -9 -9 -9 -8 -8 -7 -7 -6 ----------- Run | Yrd Mat Min Mat Min Exi Min Mat Fac DSF Fac Matter Collected 2181 | 203 291 16 147 30 . 125 991 . 85 293 Remotely 388 | . . . . . . . 388 . . . Salvage Created 3686 | . 453 36 387 159 . 170 1550 . 618 313 Parts 229 | . 21 3 34 7 . 9 89 . 36 30 Haulers Intercepted 4 | . 1 . 1 . . . 2 . . . Recyclers Shooed . | . . . . . . . . . . . Parts Field Recycled . | . . . . . . . . . . . Retrieved Matter . | . . . . . . . . . . . Parts Self-Destructed . | . . . . . . . . . . . Prevented . | . . . . . . . . . . . Kills | -11 -10 -10 -9 -9 -9 -8 -8 -7 -7 -6 ------- Run | Yrd Mat Min Mat Min Exi Min Mat Fac DSF Fac Combat Hostiles Destroyed 70 | . 9 1 11 6 . 1 27 . 6 9 Melee 4 | . . . . . . . . . . 4 Guns 39 | . 9 1 . . . 1 24 . 4 . Cannons 14 | . . . 6 5 . . . . . 3 AOE 13 | . . . 5 1 . . 3 . 2 2 Classes Destroyed 18 | . 3 2 2 1 . 1 6 . 2 1 Worker 5 | . . . . . . . 4 . . 1 Builder 5 | . . . . . . . 3 . . 2 Tunneler 3 | . . . . . . 1 . . . 2 Hauler 4 | . 1 . 1 . . . 2 . . . Recycler 1 | . . . . . . . 1 . . . Mechanic 2 | . . . . . . . 2 . . . Operator 3 | . . . 1 . . . 2 . . . Watcher 4 | . 1 . . . . . 3 . . . Swarmer 13 | . . 1 4 . . . 4 . . 4 Grunt 36 | . 9 . 5 3 . 1 15 . 1 2 Brawler 1 | . . . . . . . 1 . . . Duelist 1 | . . . . . . . 1 . . . Sentry 8 | . . . 2 . . . 6 . . . Specialist 4 | . . . . . . . . . 4 . Programmer 2 | . . . . . . . . . . 2 Heavy 2 | . . . . . . . . . 1 1 Zionite 1 | . . 1 . . . . . . . . Assembled 3 | . . . . 3 . . . . . . Best Kill Streak 11 | . 3 1 4 3 . 1 11 . 3 6 Combat Bots Only 7 | . 3 1 4 3 . 1 7 . 3 4 Max Kills in Single Turn 4 | . 1 1 4 2 . 1 3 . 2 3 Gunslinging . | . . . . . . . . . . . Exploded 3 | . . . 3 1 . . 1 . 1 1 Melee 1 | . . . . . . . . . . 1 Uniques/NPCs Destroyed . | . . . . . . . . . . . Combat | -11 -10 -10 -9 -9 -9 -8 -8 -7 -7 -6 -------- Run | Yrd Mat Min Mat Min Exi Min Mat Fac DSF Fac Hostile Shots Fired 440 | . 92 6 9 10 . 5 65 . 114 139 Missed 140 | . 29 2 2 4 . . 26 . 43 34 Damage Taken 4934 | . 787 33 83 138 . 72 543 . 1289 1989 Core 1542 | . 131 10 . 14 . 10 82 . 441 854 Absorbed by Shields . | . . . . . . . . . . . Core Remaining (%) 71 | 100 . 43 . . . 94 85 . 37 . Volleys Fired 151 | . 49 2 12 9 . 5 49 . 18 7 Largest 4 | . 2 2 4 4 . 1 2 . 2 3 Hottest 213 | . 85 85 213 213 . 60 96 . 96 141 Shots Fired 285 | . 92 4 42 28 . 5 69 . 30 15 Gun 167 | . 92 4 . . . 5 49 . 17 . Cannon 75 | . . . 36 27 . . . . . 12 Launcher 43 | . . . 6 1 . . 20 . 13 3 Special . | . . . . . . . . . . . Kinetic 158 | . 73 2 . . . 5 49 . 17 12 Thermal 84 | . 19 2 36 27 . . . . . . Explosive 21 | . . . 6 1 . . 11 . . 3 Electromagnetic 22 | . . . . . . . 9 . 13 . Robot Hit Streak 12 | . 12 2 7 9 . 7 11 . 11 10 Robot Miss Streak 6 | . 3 2 2 4 . 2 6 . 3 2 Penetration Max . | . . . . . . . . . . . Secondary Targets 4 | . 4 . . . . . . . . . Max Gunslinging Chain 1 | . 1 . . . . . . . . . Shots Hit Robots 199 | . 68 2 15 16 . 5 50 . 17 26 Core Hits 170 | . 22 2 15 6 . 5 74 . 17 29 Critical Kills . | . . . . . . . . . . . Critical Parts Destroyed . | . . . . . . . . . . . Critical Strikes 1 | . . . . . . . . . . 1 Sever 1 | . . . . . . . . . . 1 Melee Attacks 34 | . . . . . . . . . . 34 Impact . | . . . . . . . . . . . Slashing 34 | . . . . . . . . . . 34 Piercing . | . . . . . . . . . . . Sneak Attacks 1 | . . . . . . . . . . 1 Combat Hostiles . | . . . . . . . . . . . Follow-up Attacks . | . . . . . . . . . . . Damage Inflicted 9648 | 3 913 46 722 393 . 232 3861 . 1908 1570 Guns 4646 | . 913 42 . . . 213 2446 . 1032 . Cannons 901 | . . . 351 344 . . . . . 206 Explosions 3517 | . . . 371 49 . . 1414 . 855 828 Melee 536 | . . . . . . . . . . 536 Ramming 48 | 3 . 4 . . . 19 1 . 21 . Kinetic 4638 | . 716 25 . . . 213 2446 . 1032 206 Thermal 1508 | . 197 17 351 344 . . 194 . 140 265 Explosive 1803 | . . . 371 49 . . 820 . . 563 Electromagnetic 1115 | . . . . . . . 400 . 715 . Impact . | . . . . . . . . . . . Slashing 536 | . . . . . . . . . . 536 Piercing . | . . . . . . . . . . . Highest Corruption 3 | . . . . . . . . . . 3 Average Corruption 2 | . . . . . . . . . . 2 Corruption Purged . | . . . . . . . . . . . Corruption Blocked . | . . . . . . . . . . . Effects 4 | . . . . . . . . . . 4 Message Errors 1 | . . . . . . . . . . 1 Heat Flow Errors 1 | . . . . . . . . . . 1 Energy Discharges 2 | . . . . . . . . . . 2 Overload Shots . | . . . . . . . . . . . Overflow Damage 112 | . . . 18 . . . 29 . 24 41 Projectiles 3 | . . . 3 . . . . . . . Explosions 94 | . . . 15 . . . 29 . 24 26 Melee 15 | . . . . . . . . . . 15 Knockbacks 1 | . . . . . . . . . . 1 Impact . | . . . . . . . . . . . Kinetic 1 | . . . . . . . . . . 1 Secondary . | . . . . . . . . . . . Self-Inflicted Damage 304 | . . . 8 . . . . . 45 251 Shots 11 | . . . 1 . . . . . 2 8 Rammed 8 | 2 . 1 . . . 1 1 . 3 . Targets Rammed 9 | 2 . 1 . . . 2 1 . 3 . Kicked . | . . . . . . . . . . . Crushed 1 | . . . . . . 1 . . . . Highest Temperature 279 | . 37 . 266 274 . 74 279 . 112 106 Average Temperature 71 | . 12 . 121 116 . 33 74 . 37 23 Received Heat Transfer 1497 | . 480 . 21 24 . 36 234 . 504 198 Siege Activations . | . . . . . . . . . . . Robots Corrupted 1 | . . . . . . . . . 1 . Combat Hostiles . | . . . . . . . . . . . Parts Fried 6 | . . . . . . . 2 . 4 . Impact Corruptions . | . . . . . . . . . . . Robots Melted . | . . . . . . . . . . . Combat Hostiles . | . . . . . . . . . . . Parts Melted 1 | . 1 . . . . . . . . . Heat Transferred 2078 | . 481 37 555 555 . . 200 . 100 150 Parts Sabotaged . | . . . . . . . . . . . Parts Stolen . | . . . . . . . . . . . Parts Stripped . | . . . . . . . . . . . Power Chain Reactions 11 | . . . . . . . 3 . 8 . Alert | -11 -10 -10 -9 -9 -9 -8 -8 -7 -7 -6 ------- Run | Yrd Mat Min Mat Min Exi Min Mat Fac DSF Fac Peak Influence 798 | . 210 105 431 180 . 106 798 318 539 309 Initial 294 | . . 31 40 90 . . 40 294 222 251 Average 231 | . 68 40 148 68 . 87 512 304 382 188 Maximum Alert Level 3 | . 1 . 2 . . . 3 1 2 1 Low Security (%) 59 | 100 93 100 73 100 . 100 13 . . 58 Level 1 19 | . 6 . 18 . . . 11 100 60 41 Level 2 14 | . . . 8 . . . 48 . 39 . Level 3 6 | . . . . . . . 26 . . . Level 4 . | . . . . . . . . . . . Level 5 . | . . . . . . . . . . . High Security . | . . . . . . . . . . . Max Security . | . . . . . . . . . . . Squads Dispatched 16 | . 3 . . . . . 4 . 2 7 Investigation 6 | . 2 . . . . . 1 . . 3 Extermination 2 | . . . . . . . . . . 2 Reinforcement 5 | . 1 . . . . . 1 . 2 1 Assault 1 | . . . . . . . 1 . . . Garrison 2 | . . . . . . . 1 . . 1 Intercept . | . . . . . . . . . . . Searches Triggered . | . . . . . . . . . . . Construction Impeded . | . . . . . . . . . . . Haulers Reinforced . | . . . . . . . . . . . Active Scanning Responses . | . . . . . . . . . . . Cargo Convoy Interrupts . | . . . . . . . . . . . Stealth | -11 -10 -10 -9 -9 -9 -8 -8 -7 -7 -6 --------- Run | Yrd Mat Min Mat Min Exi Min Mat Fac DSF Fac Distress Signals 6 | . . . . . . . 6 . . . Communications Jammed . | . . . . . . . . . . . Distress Signals . | . . . . . . . . . . . Times Spotted 120 | . 13 3 11 12 . 4 35 . 21 21 Peak Tracking Total 10 | . 4 3 4 10 . 3 5 . 6 9 Tactical Retreats 13 | . 1 . . 2 . . 2 . 4 4 Traps | -11 -10 -10 -9 -9 -9 -8 -8 -7 -7 -6 ------- Run | Yrd Mat Min Mat Min Exi Min Mat Fac DSF Fac Traps Triggered 5 | . 1 . . . . . 1 1 . 2 Indirectly 1 | . . . . . . . 1 . . . Trap Hack Attempts . | . . . . . . . . . . . Triggered . | . . . . . . . . . . . Disarmed . | . . . . . . . . . . . Reprogrammed . | . . . . . . . . . . . Reused . | . . . . . . . . . . . Traps Extracted . | . . . . . . . . . . . Installed . | . . . . . . . . . . . Triggered . | . . . . . . . . . . . Machines | -11 -10 -10 -9 -9 -9 -8 -8 -7 -7 -6 ---------- Run | Yrd Mat Min Mat Min Exi Min Mat Fac DSF Fac Machines Disabled 18 | . . . 2 . . . 11 . 1 4 Max in Single Turn 2 | . . . 1 . . . 2 . 1 2 Garrison Access 1 | . . . . . . . 1 . . . Machines Repaired . | . . . . . . . . . . . Machines Dismantled . | . . . . . . . . . . . Machines Sabotaged . | . . . . . . . . . . . Overloaded Fab Kills . | . . . . . . . . . . . Hacking | -11 -10 -10 -9 -9 -9 -8 -8 -7 -7 -6 --------- Run | Yrd Mat Min Mat Min Exi Min Mat Fac DSF Fac Machines Accessed 13 | . 4 . 1 . 1 . 2 2 . 3 Terminals 8 | . 4 . 1 . . . 1 2 . . Fabricators . | . . . . . . . . . . . Repair Stations 1 | . . . . . . . . . . 1 Recycling Units 1 | . . . . . . . . . . 1 Scanalyzers . | . . . . . . . . . . . Garrison Access 2 | . . . . . . . 1 . . 1 Total Hacks 33 | . 10 . 1 . 1 . 8 3 . 10 Successful 11 | . 2 . . . 1 . 1 3 . 4 Failed 22 | . 8 . 1 . . . 7 . . 6 Catastrophic 5 | . 4 . 1 . . . . . . . Database Lockouts . | . . . . . . . . . . . Manual 13 | . 7 . 1 . 1 . 4 . . . Terminals 18 | . 10 . 1 . . . 4 3 . . Fabricators . | . . . . . . . . . . . Repair Stations 3 | . . . . . . . . . . 3 Recycling Units 3 | . . . . . . . . . . 3 Scanalyzers . | . . . . . . . . . . . Garrison Access 8 | . . . . . . . 4 . . 4 Terminal Hacks 6 | . 2 . . . 1 . . 3 . . Open DSF 1 | . . . . . . . . 1 . . Branch Access Points 1 | . 1 . . . . . . . . . Emergency Access Points 1 | . . . . . . . . 1 . . Registered Components 1 | . 1 . . . . . . . . . Zone Layout 1 | . . . . . . . . 1 . . Derelict Proto ID Bank 1 | . . . . . 1 . . . . . Fabricator Hacks . | . . . . . . . . . . . Repair Station Hacks 2 | . . . . . . . . . . 2 Scan Component 1 | . . . . . . . . . . 1 Refit 1 | . . . . . . . . . . 1 Recycling Unit Hacks 2 | . . . . . . . . . . 2 Recycle Component 1 | . . . . . . . . . . 1 Report Inventory 1 | . . . . . . . . . . 1 Scanalyzer . | . . . . . . . . . . . Garrison Access Hacks 1 | . . . . . . . 1 . . . Seal Access 1 | . . . . . . . 1 . . . Unauthorized Hacks . | . . . . . . . . . . . Terminals . | . . . . . . . . . . . Fabricators . | . . . . . . . . . . . Repair Stations . | . . . . . . . . . . . Recycling Units . | . . . . . . . . . . . Scanalyzers . | . . . . . . . . . . . Garrison Access . | . . . . . . . . . . . Data Cores Recovered 2 | . . . 1 . . . 1 . . . Used . | . . . . . . . . . . . Hacking Detections 11 | . 4 . 1 . . . 2 1 . 3 Full Trace Events 4 | . 1 . . . . . . . . 3 Feedback Events . | . . . . . . . . . . . Feedback Blocked . | . . . . . . . . . . . Robot Schematics Acquired . | . . . . . . . . . . . Robots Built . | . . . . . . . . . . . Authchips . | . . . . . . . . . . . Time . | . . . . . . . . . . . Total Robot Build Rating . | . . . . . . . . . . . Part Schematics Acquired . | . . . . . . . . . . . Parts Built . | . . . . . . . . . . . Authchips . | . . . . . . . . . . . Time . | . . . . . . . . . . . Total Part Build Rating . | . . . . . . . . . . . Parts Repaired . | . . . . . . . . . . . Time . | . . . . . . . . . . . Parts Recycled 1 | . . . . . . . . . . 1 Recycled Matter . | . . . . . . . . . . . Retrieved Matter . | . . . . . . . . . . . Retrieved Components . | . . . . . . . . . . . Parts Scanalyzed . | . . . . . . . . . . . Part Schematics Acquired . | . . . . . . . . . . . Parts Damaged . | . . . . . . . . . . . Bothacking | -11 -10 -10 -9 -9 -9 -8 -8 -7 -7 -6 ------------ Run | Yrd Mat Min Mat Min Exi Min Mat Fac DSF Fac Used RIF Installer . | . . . . . . . . . . . Robots Hacked . | . . . . . . . . . . . Non-combat . | . . . . . . . . . . . Combat . | . . . . . . . . . . . Robot Hacks Applied . | . . . . . . . . . . . Relay Couplers Released . | . . . . . . . . . . . Fabnet Peak Effective % . | . . . . . . . . . . . Robots Rewired . | . . . . . . . . . . . Allies Hacked . | . . . . . . . . . . . Hacks Repelled . | . . . . . . . . . . . Allies | -11 -10 -10 -9 -9 -9 -8 -8 -7 -7 -6 -------- Run | Yrd Mat Min Mat Min Exi Min Mat Fac DSF Fac Total Allies 5 | . . 2 . 3 . . . . . . Largest Group 3 | . . 2 1 3 3 3 3 . . . Highest-Rated Group 42 | . . 42 31 40 40 40 40 . . . Highest-Rated Ally 31 | . . 31 31 31 16 16 16 . . . Total Orders . | . . . . . . . . . . . Ally Attacks 39 | . . 4 8 3 . 13 11 . . . Total Damage 388 | . . 42 105 21 . 132 88 . . . Kills 10 | . . 2 1 1 . 6 . . . . Allies Corrupted . | . . . . . . . . . . . Allies Melted . | . . . . . . . . . . . Intel | -11 -10 -10 -9 -9 -9 -8 -8 -7 -7 -6 ------- Run | Yrd Mat Min Mat Min Exi Min Mat Fac DSF Fac Robot Analysis Total . | . . . . . . . . . . . Derelict Logs Recovered 2 | . . 1 . 1 . . . . . . Drone Launches . | . . . . . . . . . . . Drone Recoveries . | . . . . . . . . . . . Exploration | -11 -10 -10 -9 -9 -9 -8 -8 -7 -7 -6 ------------- Run | Yrd Mat Min Mat Min Exi Min Mat Fac DSF Fac Turns Passed 5403 | 52 460 326 411 581 352 493 1233 100 281 1114 Spaces Moved 2787 | 30 193 199 219 345 218 294 535 44 135 575 Core 73 | 7 . . . . . . . . 17 49 Treads 2714 | 23 193 199 219 345 218 294 535 44 118 526 Legs . | . . . . . . . . . . . Wheels . | . . . . . . . . . . . Hover . | . . . . . . . . . . . Flight . | . . . . . . . . . . . Fastest Speed 50 | 50 160 160 160 160 160 160 160 232 50 50 Average Speed 173 | 141 160 160 160 160 160 160 211 232 176 166 Slowest Speed 240 | 160 160 160 160 160 160 160 240 232 232 240 Overloaded Moves . | . . . . . . . . . . . Propulsion Burnouts . | . . . . . . . . . . . Robots Hopped . | . . . . . . . . . . . Cave-ins Triggered . | . . . . . . . . . . . Exploration Rate (%) 41 | 5 46 50 26 81 60 59 45 2 72 8 Regions Visited 10 Branch Regions 4 Pre-discovered Areas 1 | . . . . 1 . . . . . . Known Exits Taken 3 | . 1 . 1 . . . . 1 . . Unknown Exits Taken 6 | 1 . 1 . 1 1 1 1 . . . Scrap Searched 4 | . . . . 3 . 1 . . . . Spaces Dug . | . . . . . . . . . . . Terrain Destroyed 289 | . . . 48 11 . 7 144 . 20 59 Melee . | . . . . . . . . . . . Projectile 56 | . . . 8 5 . 7 34 . . 2 AOE 233 | . . . 40 6 . . 110 . 20 57 Terrain Rammed . | . . . . . . . . . . . Walls Destroyed . | . . . . . . . . . . . Machines Disabled . | . . . . . . . . . . . Actions | -11 -10 -10 -9 -9 -9 -8 -8 -7 -7 -6 --------- Run | Yrd Mat Min Mat Min Exi Min Mat Fac DSF Fac Total 3123 | 36 250 202 253 354 223 318 618 43 164 662 Wait 48 | . 2 . . 1 1 3 4 . 7 30 Move 2778 | 30 192 198 218 344 217 293 534 43 134 575 Hop . | . . . . . . . . . . . Pick Up 17 | . 2 . 3 . . 5 3 . 1 3 Fast Attach 24 | 5 3 . 7 . 1 1 5 . . 2 Attach 10 | . 1 . . . . . 2 . . 7 Detach 3 | . . . 2 . . . . . . 1 Swap 15 | . 1 1 3 . . 3 6 . . 1 Drop 34 | . . . 8 . 4 5 14 . 1 2 Fire 151 | . 49 2 12 9 . 5 49 . 18 7 Melee 34 | . . . . . . . . . . 34 Ram 3 | . . . . . . . . . 3 . Kick . | . . . . . . . . . . . Crush 5 | 1 . 1 . . . 2 1 . . . Escape Stasis . | . . . . . . . . . . . Rewire 1 | . . . . . . 1 . . . . Trap . | . . . . . . . . . . . Miscellaneous . | . . . . . . . . . . . Route ------- -11/Scrapyard -10/Materials (discovered 4 exits: *Mat x2 / *Min x2) -10/Mines -9/Materials (discovered 2 exits: *Min x2) -9/Mines -9/Exiles (discovered 2 exits: [*Min x2]) -8/Mines -8/Materials -7/Factory -7/DSF -6/Factory History --------- Turn | Location | Event 10 | -11/Scrapyard | Discovered new exit (range 15) 53 | -11/Scrapyard | Entered Materials 146 | -10/Materials | Discovered new exit (range 10) 330 | -10/Materials | Build established: Mutant 346 | -10/Materials | Discovered new exit (range 16) 359 | -10/Materials | Identified exit to Mines 491 | -10/Materials | Core integrity fell below 50% 513 | -10/Materials | Entered Mines 775 | -10/Mines | Build established: Scavenger-Mutant 831 | -10/Mines | Discovered new exit (range 5) 839 | -10/Mines | Entered Materials 839 | -9/Materials | Accompanied by 1 ally 839 | -9/Materials | Evolved 2 slots: Weapon x2 840 | -9/Materials | Identified exit to Mines 845 | -9/Materials | Led the pair of lost Derelicts to an unsafe place 1250 | -9/Materials | Entered Mines 1250 | -9/Mines | Accompanied by 1 ally 1395 | -9/Mines | Assembled infested the area 1450 | -9/Mines | Build established: Scavenger-Gunner 1604 | -9/Mines | Assisted by bots powering up and referring to "LRC-V3" 1713 | -9/Mines | Learned location of Recycling (-9) 1823 | -9/Mines | Discovered new exit (range 5) 1831 | -9/Mines | Entered Exiles 1831 | -9/Exiles | Accompanied by 3 allies 1854 | -9/Exiles | Discovered new exit (range 15) 1876 | -9/Exiles | Met 8R-AWN 1900 | -9/Exiles | Met EX-HEX 1948 | -9/Exiles | Met EX-BIN 1966 | -9/Exiles | Aligned with FarCom system 1967 | -9/Exiles | Given EX-Vault access code 2005 | -9/Exiles | Opened EX-Vault 2020 | -9/Exiles | Found XL Autogun Array 2062 | -9/Exiles | Warned to stay clear of 0b10 Research branches 2108 | -9/Exiles | Met EX-DEC 2162 | -9/Exiles | Discovered new exit (range 14) 2183 | -9/Exiles | Left Exiles lab with XL Autogun Array 2183 | -9/Exiles | Entered Mines 2183 | -8/Mines | Accompanied by 3 allies 2482 | -8/Mines | Build established: Scavenger-Skirmisher 2657 | -8/Mines | Discovered new exit (range 10) 2676 | -8/Mines | Entered Materials 2676 | -8/Materials | Accompanied by 3 allies 2676 | -8/Materials | Evolved 2 slots: Utility x1, Weapon x1 2787 | -8/Materials | Lost 3 allies 3237 | -8/Materials | Garrison activated, responded to threat 3454 | -8/Materials | Destroyed 7 combat bots 3874 | -8/Materials | Discovered new exit (range 16) 3876 | -8/Materials | First assault squad dispatched 3909 | -8/Materials | Entered Factory 3909 | -7/Factory | Evolved 2 slots: Utility x2 4009 | -7/Factory | Identified exit to DSF 4009 | -7/Factory | Entered DSF 4066 | -7/DSF | Additional patrols routed to DSF 4120 | -7/DSF | Build established: Skirmisher 4229 | -7/DSF | Discovered new exit (range 16) 4286 | -7/DSF | Core integrity fell below 50% 4290 | -7/DSF | Entered Factory 4290 | -6/Factory | Evolved 2 slots: Weapon x2 4309 | -6/Factory | Lost 6 parts (1p2n2u1w) 4485 | -6/Factory | Build established: Mutant 4584 | -6/Factory | Found Prototype Launcher 4584 | -6/Factory | Identified Rocket Array 4588 | -6/Factory | Found Faulty Rocket Array 4884 | -6/Factory | Build established: Tank 5346 | -6/Factory | Garrison activated, responded to threat 5378 | -6/Factory | Core integrity fell below 50% 5385 | -6/Factory | Core integrity fell below 20% 5404 | -6/Factory | Destroyed by S-27 Virus with Autogun Last Messages --------------- Katana destroyed. S-27 Virus destroyed. Rocket Array destroyed. Destroyed Rocket Array. Slug penetrates Earth. Critical hit (Burn: +37). Fusion Modulator explodes. Destroyed Flexi-carbon Leg. Repair Station disabled. Backup Power III tumbles out of repair station. Backup Laser III tumbles out of repair station. Backup Plating III tumbles out of repair station. Backup Propulsion III tumbles out of repair station. Backup Power III tumbles out of repair station. Destroyed Remote Datajack. Penetrated by Slug. Slug penetrates Wall. Connecting with Garrison Access... ALERT: Suspicious activity at Garrison Access F002. Dispatching Investigation squad. Map ----- +----------------------------------------------------+ | ??????????????###???#?###????????????????????????? | | ?????????????? ??????????????????????? | | ?????????????"""" """" """"??????????????????????? | | ?????????????"""" """" """" #???????????????????? | | ???????????# """" """" """" #???????????????????? | | ???????????# """" """" """" #???????????????????? | | ???????????# #???????????????????? | | ???????????# * #???????????????????? | | ????????????########+########????????????????????? | | ?????????????????# ^ #########?????????????????? | | ?????????????????# # #?????????????????? | | ?????????????????# # " =#?????????????????? | | ?????????######### # " #?????????????????? | | ?????????""" """ + # " ! ]#?????????????????? | | ???????# """ """ # # " ! ]#?????????????????? | | ???????# """ """ # # " !]]#?????????????????? | | ???????# ?# # " #?????########????? | | ???????# [ # # " ! #????? #????? | | ???????# # # " #???""""""" #????? | | ???????# [ " + " #??? #????? | | #??????#] # # #??"""""""" ###### | | #????############# #########?? # = | | ###??# ## # ## #?""""""""" # | | *#####"" # ## """ # # | | =%= [ * # ## "G" #?""""""""" # | | ####" !* #* /@" " # # """ | | #??# *[ !; ## # """"""""" # """ | | ???###" =#| ## # # """ | | ?? # g ## s # ! # =[ | | ?#####" # ## """" ###########+######+ | | ?????# # ## """" #??????# = | | ?????## "" "" ""## ## """" #??????# | | ??????### # #### ##s"""" #??????# | | ##??????##### #??# ## #??????# | | ##########??# #??# ##] #??????# | | #??# #??# ## #??????# ###### | | ######## #### #### #####/########## #????? | | ######## h g p #????? | | # #????? | | # #????? | | # #????? | | + #????? | | # ###########+#######+######+#########????? | | # #???????# # #????????? | | # #???????# """""" # #????????? | | # #???????# """""" # #????????? | | ##/##### #???????# """""" # """ #????????? | | ?# #???????# """ " # """"" #????????? | | # #####+####????# # """"" #????????? | | # #?# #????# """ # #????????? | +----------------------------------------------------+ Best States ------------- Heat Dissipation 58 Energy Generation 18 Energy Capacity 170 Matter Stores 300 Matter Capacity 300 Sight Range 16 Terrain Scan Density 10 Armor Coverage 600 Evasion (%) 50 Targeting Accuracy 6 Recoil Reduction 2 Offensive Hacking 10 Authchip Count 1 Item Schematics ----------------- None Robot Schematics ------------------ None Fabricated ------------ Nothing Alien Tech Used ----------------- None Achievements -------------- None Challenges ------------ None Game ------ Seed MetafiberSpikedDatajack Manual? 0 Play Time 00:36:50 Cumulative 48.3 hours Start 2024.07.27 @ 11:16:49 End 2024.07.27 @ 11:53:14 Sessions 1 Manual Loads 0 Difficulty Rogue Special Mode None Game No. 106 Rogue 36 Adventurer 70 Explorer 0 Win Type - Total 0 Types 0/0/0/0/0/0/0/0/0 Lore% 34 Gallery% 36 Achievement% 30 Wizard Run 0 Options --------- Layout 0 ASCII 0 Keyboard 0 Movement Mouse Keybinds 0 Fullscreen 1 Font 24/Smallcaps Map View 76x50 Zoom Use 0% Tactical HUD 0 Map Filters NONE Filters NONE Steam 1 RUN: 7133466e-de1f-40c0-b14a-208f598d124c